bitfinex-derivatives/quotes_ETHF0:USTF0_20260222
["timestamp","ask_amount","ask_price","bid_price","bid_amount"]
[1771739358649,0.59097085,1973.1,1972.6,0.59129541]
[1771739358851,0.59097085,1973.0,1972.6,0.59129541]
[1771739359745,0.59725052,1973.0,1972.6,0.59764577]
[1771739361051,0.00627967,1973.0,1972.6,0.59764577]
[1771739361250,0.59097085,1973.1,1972.8,0.59129541]
[1771739361751,0.59097085,1973.5,1972.8,0.59129541]
[1771739361945,0.59097085,1973.3,1972.8,0.59129541]
[1771739362147,0.59097085,1973.4,1973.0,0.59129541]
[1771739362346,0.59453964,1973.4,1973.0,0.59129541]
[1771739366260,0.59097085,1973.6,1973.0,0.59129541]
[1771739367261,0.59565335,1973.6,1973.0,0.59129541]
[1771739369160,0.59097085,1973.5,1973.0,0.59129541]
[1771739372562,0.59097085,1973.5,1972.8,0.59129541]
[1771739372863,0.59097085,1973.3,1972.8,0.59129541]
[1771739375164,0.59097085,1973.1,1972.6,0.59764577]
[1771739378265,0.59097085,1973.1,1972.6,0.00635036]
[1771739379969,0.59097085,1973.1,1972.6,0.58880242]
[1771739400979,0.59400061,1973.3,1972.7,0.58245206]
[1771739401976,0.59400061,1973.3,1972.6,1.15814882]
[1771739402278,0.59400061,1973.3,1972.6,1.74060088]
[1771739402778,0.59400061,1973.3,1972.7,0.58245206]
[1771739403181,5.78953714,1973.2,1972.7,0.58245206]
[1771739403478,0.59400061,1973.1,1972.7,0.58245206]
[1771739408583,0.59400061,1973.1,1972.6,0.5874273]
[1771739417083,0.59400061,1973.1,1972.6,0.00635036]
[1771739417281,0.56425163,1972.9,1972.4,0.57570601]
[1771739418388,0.56425163,1972.9,1972.4,0.58044892]
[1771739439506,0.56425163,1972.9,1972.4,0.00474291]
[1771739440406,0.56425163,1972.9,1972.4,0.55511084]
[1771739443112,0.54651147,1973.5,1972.4,0.55511084]
[1771739469932,0.54678727,1973.3,1972.6,0.5958511]
[1771739472639,0.54998734,1973.1,1972.6,0.5958511]
[1771739472932,5.81127516,1973.0,1972.6,0.5958511]
[1771739473132,0.54998734,1973.1,1972.6,0.5958511]
[1771739473334,5.81125731,1973.0,1972.6,0.5958511]
[1771739473535,0.54998734,1973.1,1972.6,0.5958511]
[1771739473837,5.81126795,1973.0,1972.6,0.5958511]
[1771739474034,0.54998734,1973.1,1972.6,0.5958511]
[1771739474227,5.81126575,1973.0,1972.6,0.5958511]
[1771739474425,0.54998734,1973.1,1972.6,0.5958511]
[1771739474634,5.81130393,1973.0,1972.6,0.5958511]
[1771739474834,0.54998734,1973.1,1972.6,0.5958511]
[1771739475036,5.81130411,1973.0,1972.6,0.5958511]
[1771739475335,0.54998734,1973.1,1972.6,0.5958511]
[1771739475531,5.81131131,1973.0,1972.6,0.5958511]
[1771739475731,0.54998734,1973.1,1972.6,0.5958511]
[1771739475936,5.81131131,1973.0,1972.6,0.5958511]
[1771739476138,0.54998734,1973.1,1972.6,0.5958511]
[1771739476339,5.81131414,1973.0,1972.6,0.5958511]
[1771739476538,0.54998734,1973.1,1972.6,0.5958511]
[1771739476737,5.81132059,1973.0,1972.6,0.5958511]
[1771739476939,0.54998734,1973.1,1972.6,0.5958511]
[1771739477138,5.8113212,1973.0,1972.6,0.5958511]
[1771739477338,0.54998734,1973.1,1972.6,0.5958511]
[1771739477539,5.81132674,1973.0,1972.6,0.5958511]
[1771739477839,0.54998734,1973.1,1972.6,0.5958511]
[1771739478040,5.81132674,1973.0,1972.6,0.5958511]
[1771739478239,0.54998734,1973.1,1972.6,0.5958511]
[1771739478538,5.81133133,1973.0,1972.6,0.5958511]
[1771739478738,0.54998734,1973.1,1972.6,0.5958511]
[1771739478940,5.81133133,1973.0,1972.6,0.5958511]
[1771739479141,0.54998734,1973.1,1972.6,0.5958511]
[1771739479338,5.81133535,1973.0,1972.6,0.5958511]
[1771739479537,0.54998734,1973.1,1972.6,0.5958511]
[1771739479837,5.81133517,1973.0,1972.6,0.5958511]
[1771739480037,0.54998734,1973.1,1972.6,0.5958511]
[1771739480232,5.81133589,1973.0,1972.6,0.5958511]
[1771739480432,0.54998734,1973.1,1972.6,0.5958511]
[1771739480633,5.81133891,1973.0,1972.6,0.5958511]
[1771739480836,0.54998734,1973.1,1972.6,0.5958511]
[1771739481039,5.81133854,1973.0,1972.6,0.5958511]
[1771739481240,0.54998734,1973.1,1972.6,0.5958511]
[1771739481441,5.81134173,1973.0,1972.6,0.5958511]
[1771739481643,0.54998734,1973.1,1972.6,0.5958511]
[1771739481837,5.81134153,1973.0,1972.6,0.5958511]
[1771739482034,0.54998734,1973.1,1972.6,0.5958511]
[1771739482241,5.81133983,1973.0,1972.6,0.5958511]
[1771739482441,0.54998734,1973.1,1972.6,0.5958511]
[1771739482737,5.81130156,1973.0,1972.6,0.5958511]
[1771739482942,0.54998734,1973.1,1972.6,0.5958511]
[1771739483143,5.8113034,1973.0,1972.6,0.5958511]
[1771739483340,0.54998734,1973.1,1972.6,0.5958511]
[1771739483539,5.81124222,1973.0,1972.6,0.5958511]
[1771739483735,0.54998734,1973.1,1972.6,0.5958511]
[1771739483940,5.81124258,1973.0,1972.6,0.5958511]
[1771739484148,0.54998734,1973.1,1972.6,0.5958511]
[1771739484344,5.81124163,1973.0,1972.6,0.5958511]
[1771739484538,4.25344499,1973.3,1972.8,0.54640086]
[1771739484743,5.81130044,1973.2,1972.8,0.54640086]
[1771739484942,5.81130044,1973.1,1972.8,0.54640086]
[1771739485243,0.54998734,1973.2,1972.8,0.54640086]
[1771739485543,5.81045901,1973.1,1972.8,0.54640086]
[1771739485742,0.54998734,1973.2,1972.8,0.54640086]
[1771739485942,5.81039525,1973.1,1972.8,0.54640086]
[1771739486145,0.54998734,1973.2,1972.8,0.54640086]
[1771739486346,5.81039327,1973.1,1972.8,0.54640086]
[1771739486547,0.54998734,1973.2,1972.8,0.54640086]
[1771739486841,5.80935404,1973.1,1972.8,0.54640086]
[1771739487046,0.54998734,1973.2,1972.8,0.54640086]
[1771739487248,5.80926454,1973.1,1972.8,0.54640086]
[1771739487446,0.54998734,1973.2,1972.8,0.54640086]
[1771739487747,5.80892438,1973.1,1972.8,0.54640086]
[1771739487945,0.54998734,1973.2,1972.8,0.54640086]
[1771739488146,5.80851323,1973.1,1972.8,0.54640086]
[1771739488346,0.54998734,1973.2,1972.8,0.54640086]
[1771739488546,5.80821401,1973.1,1972.8,0.54640086]
[1771739488746,0.54998734,1973.2,1972.8,0.54640086]
[1771739489045,5.80793647,1973.1,1972.8,0.54640086]
[1771739489246,0.54998734,1973.2,1972.8,0.54640086]
[1771739489446,5.80776604,1973.1,1972.8,0.54640086]
[1771739489645,0.54998734,1973.2,1972.8,0.54640086]
[1771739489846,5.80776948,1973.1,1972.8,0.54640086]
[1771739490046,0.54998734,1973.2,1972.8,0.54640086]
[1771739490247,6.35775761,1973.1,1972.8,0.54640086]
[1771739490446,0.54998734,1973.1,1972.8,0.54640086]
[1771739495048,0.54998734,1973.1,1972.7,1.15150854]
[1771739495254,0.54998734,1973.1,1972.8,0.54640086]
[1771739495455,0.54998734,1973.3,1972.8,0.54640086]
[1771739495754,0.54998734,1973.1,1972.8,0.54640086]
[1771739496654,4.80343233,1973.4,1972.8,0.54640086]
[1771739496856,5.80758393,1973.3,1973.0,0.54640086]
[1771739497050,0.54998734,1973.5,1973.0,0.54640086]
[1771739497246,5.80826566,1973.4,1973.0,0.54640086]
[1771739497449,5.80826566,1973.3,1973.0,0.54640086]
[1771739497653,0.54998734,1973.5,1973.0,0.54640086]
[1771739497953,5.80648885,1973.4,1973.0,0.54640086]
[1771739498152,0.59279511,1973.6,1973.2,0.59323628]
[1771739520778,0.0046825,1973.6,1973.2,1.74474482]
[1771739520979,0.58811261,1973.9,1973.5,0.59323628]
[1771739521285,0.58811261,1974.1,1973.6,0.59323628]
[1771739521878,0.59341334,1974.1,1973.6,0.59323628]
[1771739543899,0.59341334,1974.1,1973.2,0.57255803]
[1771739544195,0.58710343,1973.9,1973.2,0.57255803]
[1771739549800,0.59240416,1974.1,1973.2,0.57255803]
[1771739550003,0.58710343,1973.9,1973.2,0.57255803]
[1771739572126,0.55010766,1974.1,1973.2,0.57255803]
[1771739587341,0.55010766,1974.1,1973.3,0.54362571]
[1771739587542,0.54480693,1974.6,1973.6,0.54362571]
[1771739588643,0.55022883,1974.6,1973.6,0.54362571]
[1771739591840,0.55022883,1974.6,1973.9,1.74986878]
[1771739592040,0.55022883,1974.6,1973.9,1.75523866]
[1771739592244,0.55022883,1974.6,1974.0,0.59992277]
[1771739592741,0.58234089,1974.3,1973.6,0.59992277]
[1771739593746,0.58234089,1974.3,1973.6,0.60621505]
[1771739601361,0.58234089,1974.3,1973.8,0.59992277]
[1771739609272,5.74786903,1974.2,1973.8,0.59992277]
[1771739609470,0.58234089,1974.1,1973.8,0.59992277]
[1771739621771,0.58234089,1974.1,1973.7,0.56745427]
[1771739621976,0.58234089,1974.1,1973.6,0.57374655]
[1771739622677,0.58234089,1974.1,1973.6,0.00629228]
[1771739622979,0.5466414,1973.9,1973.4,0.56745427]
[1771739623979,0.5466414,1973.9,1973.4,0.5737551]
[1771739640786,4.24449973,1974.3,1973.4,0.5737551]
[1771739640992,5.79614283,1974.2,1973.6,0.56745427]
[1771739641191,0.5466414,1974.1,1973.6,0.56745427]
[1771739642190,0.5466414,1974.1,1973.5,0.56745427]
[1771739647696,0.5466414,1974.1,1973.4,0.00630083]
[1771739647902,0.5466414,1973.7,1973.2,0.56745427]
[1771739648900,0.5466414,1973.7,1973.2,0.57204957]
[1771739653602,0.54627378,1974.0,1973.2,0.57204957]
[1771739653802,6.34443916,1973.9,1973.2,0.57204957]
[1771739654102,0.54627378,1973.9,1973.2,0.57204957]
[1771739677120,5.79887087,1973.8,1973.2,0.57204957]
[1771739677318,0.54627378,1973.8,1973.2,0.57204957]
[1771739700349,0.59070724,1973.6,1973.2,0.0045953]
[1771739700646,0.59070724,1973.4,1973.0,0.60170108]
[1771739701548,0.59070724,1973.4,1973.0,0.60579789]
[1771739730870,0.56105559,1973.6,1973.0,0.60579789]
[1771739731066,6.37221321,1973.5,1973.0,0.60579789]
[1771739731270,0.56105559,1973.5,1973.0,0.60579789]
[1771739760701,0.55764084,1973.6,1973.0,0.60579789]
[1771739760995,4.81542399,1973.8,1973.2,0.54761065]
[1771739761195,5.81012183,1973.7,1973.2,0.54761065]
[1771739761393,5.81012183,1973.6,1973.2,0.54761065]
[1771739761590,4.81542399,1973.8,1973.2,0.54761065]
[1771739761792,6.36659159,1973.7,1973.2,0.54761065]
[1771739762095,5.80895075,1973.6,1973.2,0.54761065]
[1771739762797,4.81542399,1973.8,1973.2,0.54761065]
[1771739762997,5.80843805,1973.7,1973.2,0.54761065]
[1771739763197,5.80843805,1973.6,1973.2,0.54761065]
[1771739763492,5.80843805,1973.6,1973.0,0.00409681]
[1771739763493,0.55764084,1973.9,1973.4,0.54761065]
[1771739763693,5.80807532,1973.8,1973.4,0.54761065]
[1771739763995,0.55764084,1973.9,1973.4,0.54761065]
[1771739764197,5.80806957,1973.8,1973.4,0.54761065]
[1771739764398,0.55764084,1973.9,1973.4,0.54761065]
[1771739764699,5.8058855,1973.8,1973.4,0.54761065]
[1771739764894,0.55764084,1973.9,1973.4,0.54761065]
[1771739765094,5.8058855,1973.8,1973.4,0.54761065]
[1771739765292,0.55764084,1973.9,1973.4,0.54761065]
[1771739765494,5.80456458,1973.8,1973.4,0.54761065]
[1771739765693,0.55764084,1973.8,1973.4,0.54761065]
[1771739768303,4.25778315,1974.2,1973.0,0.00409681]
[1771739768304,0.59464889,1974.2,1973.8,0.56037262]
[1771739768499,0.59464889,1974.0,1973.6,0.56037262]
[1771739779314,0.54904903,1974.3,1973.6,0.56037262]
[1771739779510,0.54904903,1974.1,1973.6,0.56037262]
[1771739780909,0.54904903,1974.3,1973.6,0.56037262]
[1771739781111,0.54904903,1974.3,1973.7,0.59998231]
[1771739782113,1.50312488,1974.4,1973.7,0.59998231]
[1771739782514,0.54904903,1974.3,1973.7,0.59998231]
[1771739785321,0.54904903,1974.4,1973.7,0.59998231]
[1771739810148,0.59072092,1974.2,1973.7,0.59998231]
[1771739811748,0.59072092,1974.2,1973.5,0.57649228]
[1771739820563,0.59072092,1974.0,1973.5,0.57649228]
[1771739828866,0.55239765,1974.3,1973.5,0.57649228]
[1771739829069,5.76494119,1974.2,1973.5,0.57649228]
[1771739829270,0.55239765,1974.4,1973.5,0.57649228]
[1771739833868,0.55239765,1974.4,1973.8,0.58898407]
[1771739841880,0.57171876,1974.6,1974.2,0.58898407]
[1771739843174,0.57171876,1974.6,1973.9,1.15013191]
[1771739843175,0.57171876,1974.6,1974.0,0.58898407]
[1771739843378,0.56629686,1974.4,1974.0,0.58898407]
[1771739845679,0.0054219,1974.6,1974.0,0.58898407]
[1771739845881,0.56629686,1974.5,1974.0,0.58898407]
[1771739847984,0.0054219,1974.6,1974.2,0.58898407]
[1771739848281,0.57171876,1974.6,1974.2,0.58898407]
[1771739853387,0.0054219,1974.6,1974.2,0.58898407]
[1771739856891,0.57171876,1974.6,1974.2,0.58898407]
[1771739857086,0.57171876,1974.6,1973.9,0.58898407]
[1771739859187,0.59183405,1974.5,1973.9,0.58898407]
[1771739872606,0.0054219,1974.6,1974.2,0.56388645]
[1771739872806,0.59725595,1974.6,1974.2,0.56388645]
[1771739873004,0.0054219,1974.6,1974.2,0.56388645]
[1771739873206,0.59183405,1974.8,1974.2,0.56388645]
[1771739874098,0.59580109,1974.8,1974.4,0.56388645]
[1771739874298,0.59580109,1974.8,1974.4,0.56937309]
[1771739877614,0.59183405,1975.1,1974.4,0.56937309]
[1771739877815,5.77953816,1975.0,1974.4,0.56937309]
[1771739878012,5.77953816,1974.9,1974.4,0.56937309]
[1771739878214,0.59183405,1975.0,1974.4,0.56937309]
[1771739878514,6.37015406,1974.9,1974.4,0.56937309]
[1771739878714,0.59183405,1974.9,1974.4,0.56937309]
[1771739878909,4.83922346,1975.2,1974.6,0.56388645]
[1771739879111,0.59183405,1975.0,1974.6,0.56388645]
[1771739879913,0.59740486,1975.0,1974.6,0.56388645]
[1771739882419,0.00557081,1975.0,1974.6,0.56388645]
[1771739883011,0.59740486,1975.0,1974.6,0.56388645]
[1771739884916,0.00557081,1975.0,1974.6,0.56388645]
[1771739885121,0.59183405,1975.6,1975.0,0.56388645]
[1771739885314,0.59183405,1975.4,1975.0,0.56388645]
[1771739886015,0.59682604,1975.4,1975.0,0.56388645]
[1771739886718,0.59682604,1975.4,1974.8,0.56388645]
[1771739887517,0.59183405,1975.3,1974.8,0.56388645]
[1771739895420,0.00499199,1975.4,1974.8,0.56388645]
[1771739895421,0.56280213,1975.4,1974.8,0.56388645]
[1771739910931,0.55781014,1975.2,1974.8,0.56388645]
[1771739911430,0.00499199,1975.4,1974.8,0.56388645]
[1771739911632,6.33602466,1975.3,1974.8,0.56388645]
[1771739911829,0.55781014,1975.3,1974.8,0.56388645]
[1771739924144,0.00499199,1975.4,1974.8,0.56388645]
[1771739924352,0.60304828,1975.4,1974.8,0.56388645]
[1771739925054,0.00499199,1975.4,1974.9,0.57381881]
[1771739925647,0.59805629,1975.7,1974.9,0.57381881]
[1771739925847,5.78075107,1975.6,1974.9,0.57381881]
[1771739926145,0.59805629,1975.7,1974.9,0.57381881]
[1771739926650,0.60448951,1975.7,1974.9,0.57381881]
[1771739932958,0.59805629,1975.5,1974.9,0.57381881]
[1771739934352,0.59805629,1975.5,1974.7,0.57381881]
[1771739955880,0.59805629,1975.5,1974.8,0.5517809]
[1771739961081,0.58371516,1975.3,1974.6,0.5517809]
[1771739961281,0.58371516,1975.5,1974.8,0.5517809]
[1771739976494,0.58371516,1975.5,1974.7,1.149008]
[1771739976495,0.58371516,1975.5,1975.0,0.5517809]
[1771739986900,0.59979958,1975.6,1975.0,0.5517809]
[1771739994409,0.59979958,1975.6,1975.2,0.56355352]
[1771739996210,0.00643322,1975.7,1975.2,0.56355352]
[1771739996414,0.6062328,1975.7,1975.2,0.56355352]
[1771739997715,0.6062328,1975.7,1975.0,0.56355352]
[1771740000221,0.59979958,1975.5,1975.0,0.56355352]
[1771740003622,0.59979958,1975.5,1974.8,0.56355352]
[1771740006527,0.59979958,1975.3,1974.8,0.56355352]
[1771740009429,0.58442746,1975.1,1974.6,0.56447604]
[1771740012331,4.25197576,1975.5,1974.4,0.00548664]
[1771740012332,0.55782407,1974.9,1974.4,0.57249246]
[1771740020232,0.55782407,1975.3,1974.4,0.57249246]
[1771740020536,0.55782407,1975.1,1974.4,0.57249246]
[1771740036245,5.79708816,1975.0,1974.4,0.57249246]
[1771740036446,0.55782407,1975.0,1974.4,0.57249246]
[1771740051771,4.25197576,1975.2,1974.4,0.57249246]
[1771740051972,4.83913147,1975.2,1974.4,0.57249246]
[1771740052172,6.39291497,1975.1,1974.4,0.57249246]
[1771740052370,5.80575926,1975.0,1974.4,0.57249246]
[1771740052572,0.58715571,1975.1,1974.4,0.57249246]
[1771740052872,5.80521774,1975.0,1974.4,0.57249246]
[1771740053073,0.58715571,1975.1,1974.4,0.57249246]
[1771740053274,5.80521774,1975.0,1974.4,0.57249246]
[1771740053573,0.58715571,1975.1,1974.4,0.57249246]
[1771740053774,5.80513971,1975.0,1974.4,0.57249246]
[1771740054069,0.58715571,1975.1,1974.4,0.57249246]
[1771740054376,5.80513944,1975.0,1974.4,0.57249246]
[1771740054573,0.58715571,1975.1,1974.4,0.57249246]
[1771740054773,5.80507002,1975.0,1974.4,0.57249246]
[1771740054974,0.58715571,1975.1,1974.4,0.57249246]
[1771740055174,5.80507002,1975.0,1974.4,0.57249246]
[1771740055374,0.58715571,1975.1,1974.4,0.57249246]
[1771740055575,5.80499886,1975.0,1974.4,0.57249246]
[1771740055774,0.58715571,1975.1,1974.4,0.57249246]
[1771740055975,5.80499886,1975.0,1974.4,0.57249246]
[1771740056173,0.58715571,1975.1,1974.4,0.57249246]
[1771740056473,5.80493428,1975.0,1974.4,0.57249246]
[1771740056674,0.58715571,1975.1,1974.4,0.57249246]
[1771740056976,0.58715571,1975.2,1974.4,0.57249246]
[1771740057177,5.80485133,1975.1,1974.4,0.57249246]
[1771740057373,0.58715571,1975.2,1974.4,0.57249246]
[1771740057577,0.58715571,1975.0,1974.4,0.57249246]
[1771740077790,0.56282654,1975.1,1974.4,0.57249246]
[1771740077995,5.80199663,1975.0,1974.4,0.57249246]
[1771740078196,0.56282654,1975.1,1974.4,0.57249246]
[1771740078396,5.80209972,1975.0,1974.4,0.57249246]
[1771740078589,0.56282654,1975.1,1974.4,0.57249246]
[1771740078996,0.56282654,1975.2,1974.6,0.57320212]
[1771740079199,5.80211217,1975.1,1974.6,0.57320212]
[1771740079496,0.56282654,1975.2,1974.6,0.57320212]
[1771740079697,4.2536643,1975.4,1975.1,0.57320212]
[1771740079899,0.56282654,1975.6,1975.3,0.57320212]
[1771740080799,0.56925976,1975.7,1975.3,0.57320212]
[1771740083601,0.56282654,1975.8,1975.3,0.57320212]
[1771740084795,0.56698993,1975.8,1975.3,0.57320212]
[1771740085506,0.56698993,1975.8,1975.5,0.57320212]
[1771740087807,0.26853507,1975.9,1975.6,1.14952826]
[1771740088005,0.26853507,1976.0,1975.6,1.72273038]
[1771740088806,0.27496328,1976.0,1975.6,1.72273038]
[1771740089006,0.27496328,1976.0,1975.7,0.57320212]
[1771740089509,4.2536643,1976.4,1975.7,0.57320212]
[1771740089806,4.2536643,1976.5,1975.7,0.57320212]
[1771740090006,4.2536643,1976.5,1975.8,1.14952826]
[1771740090206,0.00135888,1976.4,1975.8,1.14952826]
[1771740090411,0.00754127,1976.4,1975.8,1.1558097]
[1771740090708,0.00135888,1976.3,1975.8,1.75760207]
[1771740091705,0.00135888,1975.9,1975.2,0.60179237]
[1771740091906,0.00135888,1975.9,1975.3,1.14952826]
[1771740092310,0.00135888,1975.9,1975.3,1.75159319]
[1771740092809,0.00135888,1975.9,1975.3,1.75630815]
[1771740093011,0.00135888,1975.9,1975.4,0.60206493]
[1771740101510,0.01007557,1976.3,1975.7,0.59747216]
[1771740109622,0.01918507,1976.4,1975.7,1.74700042]
[1771740109820,0.01918507,1976.4,1975.8,0.5960086]
[1771740111622,0.00618239,1976.4,1976.0,0.59594596]
[1771740115219,0.04258894,1976.4,1976.0,0.59594596]
[1771740115418,0.03640655,1976.3,1975.6,0.58858314]
[1771740119120,0.00618239,1976.4,1975.6,0.58858314]
[1771740119426,0.04575141,1976.4,1975.6,0.58858314]
[1771740120718,0.03854959,1976.3,1975.6,0.58858314]
[1771740122826,0.00618239,1976.4,1975.6,0.58858314]
[1771740124026,0.04469192,1976.4,1975.6,0.58858314]
[1771740132034,0.02838524,1976.3,1975.6,0.58858314]
[1771740144942,4.26337602,1976.4,1975.6,0.58858314]
[1771740152442,0.02001441,1976.3,1975.6,0.58858314]
[1771740158946,4.26704593,1976.4,1975.6,0.58858314]
[1771740174458,0.02234111,1976.3,1975.6,0.58858314]
[1771740175258,0.02234111,1976.2,1975.6,0.58858314]
[1771740182273,4.23862361,1976.3,1975.6,0.58858314]
[1771740182475,4.2630755,1976.3,1975.6,0.58858314]
[1771740188086,0.02445189,1976.3,1975.6,0.58858314]
[1771740188283,4.27584551,1976.3,1975.6,0.58858314]
[1771740188982,4.25139362,1976.3,1975.6,0.58858314]
[1771740189277,4.27592679,1976.4,1975.6,0.58858314]
[1771740190181,4.25757601,1976.4,1975.6,0.58858314]
[1771740190682,4.2759219,1976.4,1975.6,0.58858314]
[1771740199487,0.02452828,1976.4,1975.6,0.58858314]
[1771740199882,0.02452828,1976.4,1975.9,0.59409995]
[1771740202180,0.00618239,1976.4,1976.1,0.59403973]
[1771740202387,0.01681996,1976.5,1976.1,0.59403973]
[1771740203279,0.0227276,1976.5,1976.1,0.59403973]
[1771740210389,0.00590764,1976.5,1976.1,0.59403973]
[1771740215586,0.00590764,1976.5,1976.2,1.14777985]
[1771740215790,4.25139362,1976.8,1976.3,0.59180922]
[1771740215991,4.27267461,1976.8,1976.3,0.59180922]
[1771740216185,0.02128099,1976.7,1976.3,0.59180922]
[1771740216790,0.02682471,1976.7,1976.3,0.59180922]
[1771740219190,0.00554372,1976.7,1976.3,0.59180922]
[1771740221088,0.0382824,1976.7,1976.3,0.59180922]
[1771740221387,0.60142271,1976.4,1975.8,0.59140484]
[1771740226696,0.60696643,1976.7,1975.9,0.59140484]
[1771740226896,0.60696643,1976.7,1976.1,0.59140484]
[1771740229601,1.75474628,1976.7,1976.1,0.59140484]
[1771740229900,0.60142271,1976.6,1976.1,0.59140484]
[1771740242411,0.60142271,1976.5,1976.1,0.59140484]
[1771740242606,0.60142271,1976.5,1975.9,0.59140484]
[1771740244205,0.60142271,1976.5,1975.7,6.33539633]
[1771740244206,4.85836005,1976.7,1976.1,0.59140484]
[1771740248516,0.58677115,1976.6,1976.1,0.59140484]
[1771740250815,4.84370849,1976.7,1976.1,0.59140484]
[1771740252215,0.55573339,1976.6,1976.1,0.59140484]
[1771740254818,4.81267073,1976.7,1976.1,0.59140484]
[1771740257320,4.25693734,1976.7,1976.1,0.59140484]
[1771740257525,4.25693734,1976.7,1976.2,0.5990791]
[1771740257822,0.00554372,1976.7,1976.2,0.5990791]
[1771740260928,0.00554372,1976.7,1975.9,1.14758845]
[1771740260929,0.00554372,1976.7,1976.4,0.5990791]
[1771740261123,0.55573339,1976.9,1976.4,0.5990791]
[1771740262030,0.55573339,1977.0,1976.4,0.5990791]
[1771740262230,0.56100999,1977.0,1976.4,0.5990791]
[1771740270835,4.81240361,1977.0,1976.4,0.5990791]
[1771740274144,0.55573339,1976.9,1976.4,0.5990791]
[1771740275237,0.0052766,1977.0,1976.4,0.5990791]
[1771740276248,4.25139362,1977.2,1976.5,0.5990791]
[1771740276440,4.25139362,1977.3,1976.5,0.5990791]
[1771740276634,4.25139362,1977.4,1976.7,0.5990791]
[1771740276843,4.80712701,1977.4,1976.7,0.5990791]
[1771740277345,4.8112553,1977.4,1976.7,0.60357248]
[1771740279145,0.55289784,1977.3,1976.7,0.60357248]
[1771740283642,0.55289784,1977.3,1976.4,1.14725653]
[1771740283643,0.55289784,1977.2,1976.3,0.59719546]
[1771740283848,0.55289784,1977.1,1976.3,0.59719546]
[1771740284745,0.55289784,1977.1,1976.3,0.60185519]
[1771740290452,0.55289784,1977.2,1976.3,0.60185519]
[1771740292548,4.25139362,1977.3,1976.3,0.60185519]
[1771740292753,0.55702613,1977.4,1976.5,0.59719546]
[1771740303057,0.55702613,1977.4,1976.7,0.59719546]
[1771740306152,0.00412829,1977.4,1976.7,0.59719546]
[1771740309764,0.57894797,1977.4,1976.7,0.59719546]
[1771740321869,0.59248025,1977.3,1976.7,0.59719546]
[1771740323471,0.59248025,1977.3,1976.8,0.56714935]
[1771740323973,0.59660854,1977.4,1976.8,0.56714935]
[1771740324171,0.59660854,1977.4,1976.8,1.71403492]
[1771740324472,0.59660854,1977.4,1976.9,0.56714935]
[1771740325373,0.00412829,1977.4,1976.9,0.56714935]
[1771740325674,0.59660854,1977.4,1976.9,0.56714935]
[1771740342086,0.00412829,1977.4,1976.9,0.56714935]
[1771740342290,0.00412829,1977.4,1977.0,0.57796487]
[1771740347191,0.60349459,1977.4,1977.0,0.57796487]
[1771740347991,0.60349459,1977.4,1976.8,0.57796487]
[1771740355996,0.5993663,1977.2,1976.6,0.57796487]
[1771740360197,0.5993663,1977.1,1976.6,0.57796487]
[1771740360402,0.5993663,1977.0,1976.6,0.57796487]
[1771740361401,0.5993663,1977.2,1976.6,0.57796487]
[1771740361705,0.5993663,1977.3,1976.7,0.57796487]
[1771740375218,0.35713498,1977.1,1976.6,0.5963213]
[1771740376722,0.35694948,1976.9,1976.4,0.5963213]
[1771740382829,4.58555697,1977.3,1976.4,0.5963213]
[1771740383031,0.33416335,1977.2,1976.4,0.5963213]
[1771740389341,0.3330613,1977.1,1976.4,0.5963213]
[1771740424270,4.58523811,1977.4,1976.6,0.5461612]
[1771740424570,0.32993595,1977.3,1976.6,0.5461612]
[1771740439374,0.3366211,1977.2,1976.3,0.00465973]
[1771740439584,0.3366211,1977.1,1976.4,0.57434688]
[1771740448084,4.25139362,1977.2,1976.5,1.14718802]
[1771740448290,6.70981385,1977.4,1976.5,1.14718802]
[1771740448291,4.60327205,1977.4,1976.8,0.57434688]
[1771740448690,0.34677675,1977.3,1976.8,0.57434688]
[1771740451689,0.36597524,1977.0,1976.6,0.57434688]
[1771740451894,0.56812136,1976.8,1976.4,0.57434688]
[1771740452094,0.56812136,1977.0,1976.4,0.57434688]
[1771740455000,0.56812136,1976.8,1976.4,0.57434688]
[1771740455200,0.56812136,1976.8,1976.3,0.57900661]
[1771740455399,0.56812136,1976.8,1976.3,0.00465973]
[1771740455795,0.56812136,1976.6,1976.1,0.57434688]
[1771740455999,0.56812136,1976.6,1975.9,0.57434688]
[1771740456800,0.56812136,1976.6,1975.9,0.57842686]
[1771740458901,0.60022094,1976.8,1976.2,0.58869356]
[1771740459100,0.25298,1977.2,1976.4,0.58869356]
[1771740459101,0.60022094,1977.0,1976.4,0.58869356]
[1771740459703,0.60022094,1977.3,1976.8,0.58869356]
[1771740468116,0.60022094,1976.9,1976.5,0.58869356]
[1771740468618,0.60022094,1977.1,1976.5,0.58869356]
[1771740479023,0.60022094,1977.1,1976.4,0.58869356]
[1771740488834,0.60022094,1977.1,1976.5,0.56522559]
[1771740500646,0.57352384,1977.0,1976.5,0.56522559]
[1771740500846,0.57352384,1977.0,1976.3,0.56729272]
[1771740523161,0.57615887,1976.9,1976.3,0.56729272]
[1771740526562,0.57615887,1976.9,1976.1,6.33539633]
[1771740526869,0.57615887,1976.7,1976.1,0.57870877]
[1771740539077,4.82651905,1976.9,1976.1,0.57870877]
[1771740539276,0.57615887,1976.8,1976.1,0.57870877]
[1771740539678,4.25036018,1976.9,1976.1,0.57870877]
[1771740539877,0.57615887,1976.9,1976.1,0.57870877]
[1771740543082,4.82651905,1977.0,1976.2,0.57870877]
[1771740546175,0.57615887,1976.9,1976.2,0.57870877]
[1771740563493,0.54798973,1977.0,1976.2,0.57870877]
[1771740567898,0.54798973,1977.0,1976.4,0.57135437]
[1771740586105,0.58803745,1976.9,1976.4,0.57135437]
[1771740591110,0.58803745,1976.9,1976.2,0.55459151]
[1771740602019,0.58803745,1976.9,1976.4,0.55459151]
[1771740609220,0.5845231,1976.7,1976.4,0.55459151]
[1771740610222,0.5845231,1976.7,1976.2,0.57368628]
[1771740612825,1.69290877,1976.8,1976.2,0.57368628]
[1771740613026,0.54577124,1976.7,1976.2,0.57368628]
[1771740624437,0.54577124,1976.7,1976.0,0.59219621]
[1771740627838,0.54577124,1976.5,1976.0,0.59219621]
[1771740631838,0.54577124,1976.5,1975.9,0.59627619]
[1771740633840,0.54577124,1976.5,1975.7,1.14314461]
[1771740634046,0.54577124,1976.2,1975.7,1.14314461]
[1771740634341,0.54577124,1976.2,1975.8,0.59219621]
[1771740634942,0.54577124,1976.2,1975.8,0.59833642]
[1771740636350,0.54577124,1976.5,1975.8,0.59833642]
[1771740643557,0.54577124,1976.5,1975.8,0.00614021]
[1771740644055,0.5965863,1976.4,1975.8,0.58510331]
[1771740657166,0.5965863,1976.5,1975.8,0.58510331]
[1771740657371,4.84522104,1976.6,1975.8,0.58510331]
[1771740657665,0.5965863,1976.5,1975.8,0.58510331]
[1771740661165,0.5965863,1976.4,1975.8,0.58510331]
[1771740662067,0.5965863,1976.4,1975.4,7.91924542]
[1771740662068,0.5965863,1976.3,1975.6,0.5789631]
[1771740662260,0.5965863,1976.2,1975.6,0.5789631]
[1771740663070,0.5965863,1976.2,1975.6,0.58489378]
[1771740673878,0.5965863,1976.2,1975.6,0.00593068]
[1771740674478,0.5965863,1976.2,1975.4,0.54973585]
[1771740674479,0.56426173,1976.0,1975.4,0.54973585]